Cogmind - Beta 16.1 @@@ ROGUE MODE // 2026.02.20 @ 20:59:46 Player: APerTAS Result: Core destroyed Performance ------------- Evolutions (5) 2500 Regions Visited (13) 2600 Robots Destroyed (82) 410 Value Destroyed (3635) 3635 Prototype IDs (29) 580 Alien Tech Used (0) 0 Bonus (3523) 3523 TOTAL SCORE: 13248 Bonus ------- High Alert Combat Kills 144 Follower Combat Kills 2248 Entered DSFs 500 Aligned with FarCom 300 Built Enhanced Grunts 300 Met R17 at Cetus 500 Friendly Fire -469 Cogmind --------- Core Integrity 0/1000 Matter 300/300 Energy 100/100 System Corruption 23% Temperature Cool (0) Movement Core (50) Location -5/Upper Caves Parts ------- > --- POWER (2) -------- (None) > --- PROPULSION (6) --- (None) > --- UTILITY (6) ------ (None) > --- WEAPON (3) ------- (None) > --- INVENTORY (5) ---- Advanced Cooling System Improved Transmission Jammer Medium Regenerative Plating Heavy Phase Cannon Heavy Phase Cannon Peak State ------------ > --- POWER ------------ Reinforced Deuterium Engine Antimatter Reactor > --- PROPULSION ------- Centrium Heavy Treads Centrium Heavy Treads Centrium Heavy Treads > --- UTILITY ---------- Improved Cryofiber Web Advanced Cooling System Huge Storage Unit Improved Signal Interpreter Armor Integrity Analyzer Centrium Medium Armor Plating > --- WEAPON ----------- Heavy Phase Cannon Advanced KE Penetrator Great Axe > --- INVENTORY -------- Angular Momentum Engine Antimatter Reactor Improved Treads Wheel Wheel Armored Wheel Advanced Cooling System Seismic Detector Advanced Targeting Computer Advanced Targeting Computer Improved Target Analyzer Armor Integrity Analyzer Improved Transmission Jammer Phase Shifter Medium Regenerative Plating Focal Shield Dimensional Node Initializer Improved Heavy Laser Proton Cannon Proton Cannon Heavy Phase Cannon Advanced Assault Cannon Magnetic Acceleration Cannon Makeshift Spear [Rating: 122] Favorites ----------- Power Reinforced Deuterium Engine Engine Reinforced Deuterium Engine Reactor Antimatter Reactor Propulsion Centrium Heavy Treads Treads Centrium Heavy Treads Leg Carbon-fiber Leg Wheel Armored Wheel Flight Unit Cesium-ion Thruster Utility Improved Signal Interpreter Device Improved Cryofiber Web Storage Medium Storage Unit Processor Improved Signal Interpreter Hackware Hacking Suite Protection Centrium Medium Armor Plating Weapon Great Maul Energy Gun Heavy Laser Energy Cannon Proton Cannon Ballistic Gun Advanced KE Penetrator Ballistic Cannon Magnetic Acceleration Cannon Special Weapon Mining Laser Impact Weapon Great Maul Slashing Weapon Great Axe Build | -11 -10 -10 -10 -9 -8 -7 -7 -6 -6 -6 -5 -5 -5 ------- Run | Yrd Mat Min Exi Min Mat Fac DSF Fac Ext Cet Fac Upp Upp Slots Evolved 10 | . . . . . 4 2 . 2 . . 2 . . Power 1 | . . . . . . 1 . . . . . . . Propulsion 4 | . . . . . 2 1 . . . . 1 . . Utility 4 | . . . . . 2 . . 2 . . . . . Weapon 1 | . . . . . . . . . . . 1 . . Parts Attached 95 | . . . . 2 2 . . 4 41 18 10 6 12 Power 11 | . . . . . . . . . 5 3 1 . 2 Engine 9 | . . . . . . . . . 5 3 . . 1 Core . | . . . . . . . . . . . . . . Reactor 2 | . . . . . . . . . . . 1 . 1 Propulsion 36 | . . . . . 1 . . 1 18 9 . 3 4 Treads 8 | . . . . . . . . 1 . 3 . 3 1 Leg 24 | . . . . . . . . . 18 6 . . . Wheel 3 | . . . . . . . . . . . . . 3 Hover . | . . . . . . . . . . . . . . Flight 1 | . . . . . 1 . . . . . . . . Utility 30 | . . . . . 1 . . 3 11 4 5 1 5 Device 11 | . . . . . . . . . 6 . 2 1 2 Storage 3 | . . . . . . . . . 1 . 2 . . Processor 8 | . . . . . . . . 3 1 1 . . 3 Hackware 1 | . . . . . 1 . . . . . . . . Protection 7 | . . . . . . . . . 3 3 1 . . Artifact . | . . . . . . . . . . . . . . Weapon 18 | . . . . 2 . . . . 7 2 4 2 1 Energy Gun 2 | . . . . . . . . . 1 1 . . . Energy Cannon 4 | . . . . . . . . . . . 3 1 . Ballistic Gun 3 | . . . . . . . . . 2 1 . . . Ballistic Cannon 4 | . . . . . . . . . 2 . . 1 1 Launcher . | . . . . . . . . . . . . . . Special Weapon 1 | . . . . 1 . . . . . . . . . Impact Weapon 1 | . . . . . . . . . 1 . . . . Slashing Weapon 3 | . . . . 1 . . . . 1 . 1 . . Piercing Weapon . | . . . . . . . . . . . . . . Special Melee Weapon . | . . . . . . . . . . . . . . Unidentified Prototypes 6 | . . . . . . . . . . 5 1 . . Corrupted Parts 8 | . . . . . . . . . 1 7 . . . System Corruption 49 | . . . . . . . . . 8 41 . . . Parts Lost 41 | . . . . . 2 . . . 9 4 2 2 22 Power 8 | . . . . . . . . . 3 1 . . 4 Propulsion 14 | . . . . . . . . . 2 2 . 1 9 Utility 8 | . . . . . 1 . . . 1 . 1 . 5 Weapon 11 | . . . . . 1 . . . 3 1 1 1 4 Highest Loss Streak 18 | . . . . . 2 . . . 3 3 2 1 18 To Critical Strikes . | . . . . . . . . . . . . . . Average Backups 13 | . . . 2 1 1 1 1 1 7 9 14 24 23 Power 1 | . . . . . . . . . 1 1 1 2 1 Propulsion 1 | . . . . . . . . . 1 . . 3 4 Utility 6 | . . . . . . . . . 1 4 8 10 9 Weapon 3 | . . . 2 1 1 1 1 1 2 2 3 6 6 Tool/Special . | . . . . . . . . . . . . . . Unused Backups 26 | . . . . . . . . . 4 2 7 3 10 Power 3 | . . . . . . . . . 2 . 1 . . Propulsion 1 | . . . . . . . . . . . . 1 . Utility 12 | . . . . . . . . . 1 1 5 . 5 Weapon 8 | . . . . . . . . . 1 1 1 1 4 Tool/Special 2 | . . . . . . . . . . . . 1 1 Average Slot Usage (%) 75 | . . . . . 16 . . 4 84 95 81 86 80 Engine 7 | . . . . . . . . . 10 13 8 5 4 Reactor 1 | . . . . . . . . . . . 1 5 4 Treads 10 | . . . . . . . . 1 . . 16 21 20 Leg 9 | . . . . . . . . . 30 28 . . . Device 10 | . . . . . . . . . 12 13 11 11 9 Storage 4 | . . . . . . . . . 4 6 5 5 4 Processor 8 | . . . . . . . . 3 6 9 11 11 10 Protection 4 | . . . . . . . . . 6 9 5 5 4 Energy Cannon 2 | . . . . . . . . . . . 3 4 4 Ballistic Gun 2 | . . . . . . . . . 2 6 5 . . Ballistic Cannon 2 | . . . . . . . . . 2 . . 4 4 Impact Weapon 2 | . . . . . . . . . 3 4 4 . . Slashing Weapon 1 | . . . . . 7 . . . . . . 5 4 Peak Build Rating 122 | . . . . 5 10 . . 9 65 94 120 122 108 Average Rating 79 | . . . . . 6 . . 2 51 64 112 110 93 On Entrance 27 | . . . . . . . . . 8 55 93 119 107 Avg Prop Armor Cover (%) 16 | . . . . . . . . 35 31 3 8 . 2 Naked Turns 639 | . 52 120 167 145 11 4 38 70 . . . . 32 Heaviest Build 142 | . . . . 2 2 . . . 58 51 141 142 141 Greatest Support 240 | 3 3 3 3 3 5 3 3 3 110 160 240 240 213 Greatest Overweight (x) 4 | . . . . . . . . . 4 . . . 1 Average Overweight (x) . | . . . . . . . . . . . . . . Largest Inventory Capacity 25 | 5 5 5 5 5 5 5 5 5 10 10 25 25 25 Average Capacity 15 | 5 5 5 5 5 5 5 5 5 8 10 16 25 23 Most Carried 25 | . . 2 2 5 5 1 1 1 10 10 22 25 25 Average Carried 13 | . . . 2 2 3 1 1 1 7 9 14 24 23 Final Capacity 25 | 5 5 5 5 5 5 5 5 5 10 10 25 25 5 Final Carried 25 | . . 2 2 5 1 1 1 1 10 10 21 25 5 Class Distribution -------------------- 74% | Scavenger-Mutant 15% | Mutant 4% | Scavenger-Assassin Dominant Class ---------------- Mutant | -10/Materials Mutant | -10/Mines Mutant | -10/Exiles Mutant | -9/Mines Mutant | -8/Materials Mutant | -7/Factory Mutant | -7/DSF Mutant | -6/Factory Scavenger-Mutant | -6/Extension Scavenger-Mutant | -6/Cetus Scavenger-Mutant | -5/Factory Scavenger-Mutant | -5/Upper Caves Scavenger-Mutant | -5/Upper Caves Resources | -11 -10 -10 -10 -9 -8 -7 -7 -6 -6 -6 -5 -5 -5 ----------- Run | Yrd Mat Min Exi Min Mat Fac DSF Fac Ext Cet Fac Upp Upp Matter Collected 2474 | 175 . 25 . 30 9 . 11 . 886 287 483 283 285 Remotely . | . . . . . . . . . . . . . . Salvage Created 4736 | . . . . 120 85 . 55 . 2119 75 1152 474 656 Parts 190 | . . . . 4 11 . 4 . 59 1 75 13 23 Haulers Intercepted 5 | . . . . . . . 1 . 4 . . . . Recyclers Shooed 6 | . . . . . . . . . 2 . 4 . . Parts Field Recycled . | . . . . . . . . . . . . . . Retrieved Matter . | . . . . . . . . . . . . . . Parts Self-Destructed 29 | . . . . . . . . . . . . 14 15 Prevented 9 | . . . . . . . . . . . . 2 7 Parts Restored . | . . . . . . . . . . . . . . Kills | -11 -10 -10 -10 -9 -8 -7 -7 -6 -6 -6 -5 -5 -5 ------- Run | Yrd Mat Min Exi Min Mat Fac DSF Fac Ext Cet Fac Upp Upp Combat Hostiles Destroyed 64 | . . . . . 5 . . . 15 1 21 6 16 Melee 5 | . . . . . 1 . . . 2 . . . 2 Guns 12 | . . . . . . . . . 5 1 6 . . Cannons 32 | . . . . . . . . . 3 . 10 6 13 AOE 10 | . . . . . 4 . . . . . 5 . 1 Classes Destroyed 14 | . . . . 1 3 . 1 . 6 . 1 . 2 Builder 1 | . . . . . . . . . . . 1 . . Hauler 5 | . . . . . . . 1 . 4 . . . . Recycler 8 | . . . . . . . . . 7 . 1 . . Operator 1 | . . . . . 1 . . . . . . . . Swarmer 18 | . . . . . . . . . 1 . 5 4 8 Cutter 4 | . . . . . 4 . . . . . . . . Grunt 15 | . . . . . . . . . 9 . 2 . 4 Brawler 2 | . . . . . . . . . . . . . 2 Duelist 1 | . . . . . . . . . . . . . 1 Sentry 4 | . . . . . 1 . . . . . 2 . 1 Specialist 3 | . . . . . . . . . 1 . 2 . . Hunter 5 | . . . . . . . . . . . 5 . . Programmer 8 | . . . . . . . . . 2 . 5 1 . Behemoth 3 | . . . . . . . . . 2 . . 1 . Cetus Guard 1 | . . . . . . . . . . 1 . . . Packrat 1 | . . . . . . . . . . . . 1 . Thug 2 | . . . . 2 . . . . . . . . . Guerrilla 1 | . . . . . . . . . 1 . . . . Best Kill Streak 8 | . . . . . 4 . 1 . 3 1 5 4 8 Combat Bots Only 8 | . . . . . 4 . . . 2 1 5 4 8 Max Kills in Single Turn 4 | . . . . 1 2 . 1 . 2 1 4 1 2 Gunslinging . | . . . . . . . . . . . . . . Exploded 4 | . . . . . 2 . . . . . 4 . 1 Melee 1 | . . . . . 1 . . . 1 . . . 1 Uniques/NPCs Destroyed . | . . . . . . . . . . . . . . Combat | -11 -10 -10 -10 -9 -8 -7 -7 -6 -6 -6 -5 -5 -5 -------- Run | Yrd Mat Min Exi Min Mat Fac DSF Fac Ext Cet Fac Upp Upp Hostile Shots Fired 786 | . 24 . . . 53 . 25 27 145 48 201 55 208 Missed 236 | . 9 . . . 18 . 7 16 37 20 47 14 68 Hits 550 | . 15 . . . 35 . 18 11 108 28 154 41 140 Melee 25 | . . . . . 3 . 6 . . . . . 16 Projectile 525 | . 15 . . . 32 . 12 11 108 28 154 41 124 AOE 4 | . . . . . . . 2 . . . 2 . . Critical Strikes 33 | . . . . . 1 . 3 . 6 5 4 3 11 Part Disruptions 4 | . . . . . . . . . 3 . 1 . . Damage Taken 10732 | . 156 . . . 512 . 542 79 2080 659 2773 917 3014 Core 2656 | . 156 . . . 433 . 542 56 388 81 176 12 812 Absorbed by Shields 377 | . . . . . . . . . 278 99 . . . Reduced by Siege Mode 197 | . . . . . . . . . . . 108 84 5 Regen/Repaired (Parts) 1 | . . . . . . . . . . 1 . . . Core Remaining (%) 43 | 100 . . . 37 21 . 22 . . 38 . . . Volleys Fired 229 | . . . . . . . . . 71 26 70 24 38 Largest 2 | . . . . . . . . . 2 2 2 2 2 Hottest 125 | . . . . . . . . . 117 99 125 125 119 Shots Fired 375 | . . . . . . . . . 87 35 139 44 70 Gun 173 | . . . . . . . . . 55 35 74 9 . Cannon 202 | . . . . . . . . . 32 . 65 35 70 Launcher . | . . . . . . . . . . . . . . Special . | . . . . . . . . . . . . . . Kinetic 241 | . . . . . . . . . 79 26 71 27 38 Thermal 83 | . . . . . . . . . 8 9 61 5 . Explosive . | . . . . . . . . . . . . . . Electromagnetic 51 | . . . . . . . . . . . 7 12 32 Robot Hit Streak 25 | . . . . . . . . . 5 10 25 22 7 Robot Miss Streak 6 | . . . . . . . . . 6 4 5 2 2 Penetration Max 1 | . . . . . . . . . 1 1 1 . . Secondary Targets . | . . . . . . . . . . . . . . Shots Hit Robots 298 | . . . . 2 4 . . . 81 23 93 37 58 Core Hits 130 | . . . . 2 8 . 1 . 31 6 41 13 28 Critical Kills 11 | . . . . . . . . . 9 . 2 . . Critical Parts Destroyed 23 | . . . . . . . . . 15 1 4 3 . Critical Strikes 46 | . . . . . . . . . 27 2 6 4 7 Burn 1 | . . . . . . . . . . 1 . . . Destroy 27 | . . . . . . . . . 17 1 6 3 . Blast 2 | . . . . . . . . . . . . 1 1 Corrupt 3 | . . . . . . . . . . . . . 3 Smash 8 | . . . . . . . . . 8 . . . . Sever 5 | . . . . . . . . . 2 . . . 3 Melee Attacks 108 | . . . . 2 9 . . . 41 13 13 18 12 Impact 53 | . . . . . . . . . 31 13 9 . . Slashing 55 | . . . . 2 9 . . . 10 . 4 18 12 Piercing . | . . . . . . . . . . . . . . Sneak Attacks 12 | . . . . 2 . . . . 9 . . 1 . Combat Hostiles 1 | . . . . . . . . . 1 . . . . Follow-up Attacks . | . . . . . . . . . . . . . . Damage Inflicted 11048 | . . . . 140 355 . 17 . 3109 557 3435 1328 2107 Guns 2918 | . . . . . . . . . 855 557 1295 211 . Cannons 4190 | . . . . . . . . . 464 . 1573 645 1508 Explosions 1042 | . . . . . 184 . . . . . 567 44 247 Melee 2814 | . . . . 140 171 . . . 1781 . . 428 294 Ramming 84 | . . . . . . . 17 . 9 . . . 58 Kinetic 4245 | . . . . . . . . . 1206 428 1248 536 827 Thermal 2676 | . . . . . . . . . 113 129 1994 193 247 Explosive 222 | . . . . . 184 . . . . . 38 . . Electromagnetic 1007 | . . . . . . . . . . . 155 171 681 Impact 1553 | . . . . . . . . . 1553 . . . . Slashing 1261 | . . . . 140 171 . . . 228 . . 428 294 Piercing . | . . . . . . . . . . . . . . Highest Corruption 52 | . . . . . . . . . 11 52 6 6 23 Average Corruption 7 | . . . . . . . . . 9 23 3 4 3 Corruption Purged 6 | . . . . . . . . . . . . 6 . Corruption Blocked . | . . . . . . . . . . . . . . Effects 105 | . . . . . . . . . 20 28 29 15 13 Message Errors 27 | . . . . . . . . . 4 8 10 2 3 Matter Fused 29 | . . . . . . . . . 5 4 7 7 6 Heat Flow Errors 5 | . . . . . . . . . 1 3 1 . . Energy Discharges 15 | . . . . . . . . . 5 4 4 2 . Parts Rejected 2 | . . . . . . . . . 1 . . 1 . Parts Fused 1 | . . . . . . . . . . . . 1 . Data Loss (minor) 7 | . . . . . . . . . 1 1 3 1 1 Data Loss (major) 5 | . . . . . . . . . . 3 2 . . Misfires 4 | . . . . . . . . . 1 1 2 . . Alerts 2 | . . . . . . . . . 1 1 . . . Misdirections 4 | . . . . . . . . . 1 2 . . 1 Weapon Failures 4 | . . . . . . . . . . 1 . 1 2 Overload Shots . | . . . . . . . . . . . . . . Overflow Damage 821 | . . . . . 30 . . . 539 . 143 5 104 Projectiles 46 | . . . . . . . . . 2 . 13 5 26 Explosions 176 | . . . . . . . . . . . 130 . 46 Melee 599 | . . . . . 30 . . . 537 . . . 32 Knockbacks 16 | . . . . . . . . . 7 . . 2 7 Impact 5 | . . . . . . . . . 5 . . . . Kinetic 10 | . . . . . . . . . 1 . . 2 7 Secondary 1 | . . . . . . . . . 1 . . . . Self-Inflicted Damage 297 | . . . . . 86 . 8 . . . 93 . 110 Shots 5 | . . . . . 2 . . . . . 1 . 2 Rammed 24 | . . . . . . . 1 . 2 . . . 21 Targets Rammed 25 | . . . . . . . 1 . 3 . . . 21 Kicked 1 | . . . . . . . . . 1 . . . . Crushed . | . . . . . . . . . . . . . . Highest Temperature 310 | . . . . . . . . . 310 19 . 237 25 Average Temperature 82 | . . . . . . . . . 85 15 . 109 9 Received Heat Transfer 3255 | . 45 . . . 63 . . 18 1129 . 351 722 927 Effects 1 | . . . . . . . . . 1 . . . . Interference 1 | . . . . . . . . . 1 . . . . Siege Activations 4 | . . . . . . . . . . . 2 1 1 Total Turns 75 | . . . . . . . . . . . 36 37 2 Longest Duration 37 | . . . . . . . . . . . 20 37 2 Martial Activations . | . . . . . . . . . . . . . . Shielding Activations . | . . . . . . . . . . . . . . Robots Disrupted . | . . . . . . . . . . . . . . Combat Hostiles . | . . . . . . . . . . . . . . Robots Corrupted 8 | . . . . . . . . . 8 . . . . Combat Hostiles 5 | . . . . . . . . . 5 . . . . Parts Fried 8 | . . . . . . . . . 6 . 1 . 1 Impact Corruptions 14 | . . . . . . . . . 13 . . . 1 Robots Melted . | . . . . . . . . . . . . . . Combat Hostiles . | . . . . . . . . . . . . . . Parts Melted 1 | . . . . . . . . . . . 1 . . Heat Transferred 1958 | . . . . . . . . . 222 333 905 198 300 Parts Sabotaged . | . . . . . . . . . . . . . . Parts Stolen . | . . . . . . . . . . . . . . Parts Stripped . | . . . . . . . . . . . . . . Power Chain Reactions 4 | . . . . . . . . . . . 1 1 2 Alert | -11 -10 -10 -10 -9 -8 -7 -7 -6 -6 -6 -5 -5 -5 ------- Run | Yrd Mat Min Exi Min Mat Fac DSF Fac Ext Cet Fac Upp Upp Maximum Alert Level 2 | . . . . . 1 . . . 2 2 2 . . Low Security (%) 56 | 100 100 100 . 100 79 100 100 100 62 . 54 . . Level 1 23 | . . . . . 20 . . . 14 60 27 . . Level 2 19 | . . . . . . . . . 22 39 18 . . Level 3 . | . . . . . . . . . . . . . . Level 4 . | . . . . . . . . . . . . . . Level 5 . | . . . . . . . . . . . . . . High Security . | . . . . . . . . . . . . . . Max Security . | . . . . . . . . . . . . . . Peak Influence 682 | . . . . . 289 117 86 44 682 471 600 . . Initial 378 | . . . . . . 117 81 44 . 378 204 . . Average 220 | . . . . . 149 117 81 23 196 393 253 . . Influence Increases 4405 | . . . . . 349 . 5 5 1760 390 1185 160 551 Destroy 0b10 Robot/C 2240 | . . . . . 100 . . . 960 220 500 120 340 Destroy 0b10 Robot/NC 120 | . . . . . 5 . 5 . 80 10 10 10 . Destroy Leader 344 | . . . . . 20 . . . 124 10 130 30 30 Allied During Kill 532 | . . . . . . . . . 392 102 37 . 1 Trap Triggered on 0b10 10 | . . . . . 10 . . . . . . . . Successful Hack 123 | . . . . . 24 . . 5 45 16 33 . . Disable Machine 285 | . . . . . . . . . 45 . 240 . . Anti-Garrison Action 150 | . . . . . 150 . . . . . . . . Destroy Structure 271 | . . . . . 10 . . . 54 17 190 . . Partial Spotted 15 | . . . . . . . . . 15 . . . . Lose Combat Pursuer 315 | . . . . . 30 . . . 45 15 45 . 180 Influence Decreases 4344 | . . . . . 90 142 36 91 1084 700 961 750 490 Entered New Map 899 | . . . . . . 142 36 42 . 298 162 219 . Time Decay 2235 | . . . . . 70 . . 49 504 262 589 511 250 Lost Part 390 | . . . . . 20 . . . 70 40 20 20 220 Lost Ally 520 | . . . . . . . . . 360 100 40 . 20 Purge Threat 300 | . . . . . . . . . 150 . 150 . . Squads Dispatched 21 | . 1 . . . 5 . 1 . 4 1 8 . 1 Investigation 5 | . . . . . 1 . . . 3 1 . . . Extermination 4 | . . . . . . . . . . . 4 . . Reinforcement 6 | . 1 . . . 2 . 1 . . . 2 . . Assault 4 | . . . . . 2 . . . 1 . . . 1 Garrison 2 | . . . . . . . . . . . 2 . . Intercept . | . . . . . . . . . . . . . . Searches Triggered . | . . . . . . . . . . . . . . Construction Impeded . | . . . . . . . . . . . . . . Haulers Reinforced . | . . . . . . . . . . . . . . Active Scanning Responses . | . . . . . . . . . . . . . . Cargo Convoy Interrupts . | . . . . . . . . . . . . . . Stealth | -11 -10 -10 -10 -9 -8 -7 -7 -6 -6 -6 -5 -5 -5 --------- Run | Yrd Mat Min Exi Min Mat Fac DSF Fac Ext Cet Fac Upp Upp Distress Signals 11 | . 1 . . . . . . . 5 2 3 . . Communications Jammed . | . . . . . . . . . . . . . . Distress Signals . | . . . . . . . . . . . . . . Times Spotted 162 | . 8 . . . 12 . 4 1 51 14 35 6 31 Peak Tracking Total 9 | . 8 . . . 9 . 4 2 8 5 6 4 9 Tactical Retreats 13 | . . . . . 1 . . . 3 1 2 . 6 Traps | -11 -10 -10 -10 -9 -8 -7 -7 -6 -6 -6 -5 -5 -5 ------- Run | Yrd Mat Min Exi Min Mat Fac DSF Fac Ext Cet Fac Upp Upp Traps Triggered 9 | . . . . . 2 . 1 . 2 . 2 2 . Indirectly . | . . . . . . . . . . . . . . Trap Hack Attempts . | . . . . . . . . . . . . . . Triggered . | . . . . . . . . . . . . . . Disarmed . | . . . . . . . . . . . . . . Reprogrammed . | . . . . . . . . . . . . . . Reused 1 | . . . . . 1 . . . . . . . . Traps Extracted . | . . . . . . . . . . . . . . Installed 3 | . . . . . 3 . . . . . . . . Triggered 1 | . . . . . 1 . . . . . . . . Most Traps Carried 3 | . . . . 3 3 . . . . . . . . Objects Rigged 1 | . . . . . 1 . . . . . . . . Machines | -11 -10 -10 -10 -9 -8 -7 -7 -6 -6 -6 -5 -5 -5 ---------- Run | Yrd Mat Min Exi Min Mat Fac DSF Fac Ext Cet Fac Upp Upp Machines Disabled 24 | . . . . . 1 . . . 5 . 16 1 1 Max in Single Turn 4 | . . . . . 1 . . . 1 . 4 1 1 Garrison Access 2 | . . . . . 1 . . . . . 1 . . Machines Repaired . | . . . . . . . . . . . . . . Machines Dismantled . | . . . . . . . . . . . . . . Machines Sabotaged . | . . . . . . . . . . . . . . Overloaded Fab Kills . | . . . . . . . . . . . . . . Hacking | -11 -10 -10 -10 -9 -8 -7 -7 -6 -6 -6 -5 -5 -5 --------- Run | Yrd Mat Min Exi Min Mat Fac DSF Fac Ext Cet Fac Upp Upp Machines Accessed 28 | . . . 2 . 3 1 . 1 11 3 5 2 . Terminals 19 | . . . . . 2 1 . 1 9 3 3 . . Fabricators . | . . . . . . . . . . . . . . Repair Stations . | . . . . . . . . . . . . . . Recycling Units 2 | . . . . . . . . . 2 . . . . Scanalyzers 1 | . . . . . . . . . . . 1 . . Garrison Access 2 | . . . . . 1 . . . . . 1 . . Total Hacks 70 | . . . 2 . 9 2 . 1 31 11 12 2 . Successful 37 | . . . 2 . 5 1 . 1 17 3 6 2 . Failed 33 | . . . . . 4 1 . . 14 8 6 . . Catastrophic 6 | . . . . . 2 . . . 2 1 1 . . Database Lockouts . | . . . . . . . . . . . . . . Manual 29 | . . . 1 . 7 . . . 12 2 7 . . Terminals 53 | . . . . . 7 2 . 1 24 11 8 . . Fabricators . | . . . . . . . . . . . . . . Repair Stations . | . . . . . . . . . . . . . . Recycling Units 7 | . . . . . . . . . 7 . . . . Scanalyzers 3 | . . . . . . . . . . . 3 . . Garrison Access 3 | . . . . . 2 . . . . . 1 . . Terminal Hacks 25 | . . . 2 . 3 1 . 1 11 3 2 2 . Record 8 | . . . 1 . . . . . 3 3 . 1 . Open Door 5 | . . . . . . . . . 4 . . 1 . Open DSF 2 | . . . . . . 1 . 1 . . . . . Level Access Points 1 | . . . . . 1 . . . . . . . . Branch Access Points 1 | . . . . . . . . . . . 1 . . Alert Level 1 | . . . . . . . . . 1 . . . . Unreport Threat 2 | . . . . . . . . . 1 . 1 . . Hauler Manifests 2 | . . . . . 1 . . . 1 . . . . Registered Components 1 | . . . . . . . . . 1 . . . . Zone Layout 1 | . . . . . 1 . . . . . . . . Proto ID Catalog 1 | . . . 1 . . . . . . . . . . Fabricator Hacks . | . . . . . . . . . . . . . . Repair Station Hacks . | . . . . . . . . . . . . . . Recycling Unit Hacks 1 | . . . . . . . . . 1 . . . . Report Inventory 1 | . . . . . . . . . 1 . . . . Scanalyzer 2 | . . . . . . . . . . . 2 . . Retrieve Study 2 | . . . . . . . . . . . 2 . . Garrison Access Hacks 1 | . . . . . . . . . . . 1 . . Seal Access 1 | . . . . . . . . . . . 1 . . Unauthorized Hacks 8 | . . . . . 2 . . . 5 . 1 . . Terminals 5 | . . . . . 2 . . . 2 . 1 . . Botnet 4 | . . . . . 1 . . . 2 . 1 . . Detonate 1 | . . . . . 1 . . . . . . . . Fabricators . | . . . . . . . . . . . . . . Repair Stations . | . . . . . . . . . . . . . . Recycling Units 3 | . . . . . . . . . 3 . . . . Reject 2 | . . . . . . . . . 2 . . . . Mask 1 | . . . . . . . . . 1 . . . . Scanalyzers . | . . . . . . . . . . . . . . Garrison Access . | . . . . . . . . . . . . . . Data Cores Recovered 1 | . . . . . 1 . . . . . . . . Used 1 | . . . . . 1 . . . . . . . . Hacking Detections 18 | . . . . . 2 . . . 9 3 4 . . Full Trace Events 4 | . . . . . 1 . . . 2 1 . . . Feedback Events . | . . . . . . . . . . . . . . Feedback Blocked . | . . . . . . . . . . . . . . Robot Schematics Acquired . | . . . . . . . . . . . . . . Robots Built . | . . . . . . . . . . . . . . Authchips . | . . . . . . . . . . . . . . Time . | . . . . . . . . . . . . . . Total Robot Build Rating . | . . . . . . . . . . . . . . Part Schematics Acquired . | . . . . . . . . . . . . . . Parts Built . | . . . . . . . . . . . . . . Authchips . | . . . . . . . . . . . . . . Time . | . . . . . . . . . . . . . . Total Part Build Rating . | . . . . . . . . . . . . . . Part Studies Acquired 2 | . . . . . . . . . . . 2 . . Parts Repaired . | . . . . . . . . . . . . . . Time . | . . . . . . . . . . . . . . Parts Recycled . | . . . . . . . . . . . . . . Recycled Matter . | . . . . . . . . . . . . . . Retrieved Matter . | . . . . . . . . . . . . . . Retrieved Components . | . . . . . . . . . . . . . . Parts Scanalyzed . | . . . . . . . . . . . . . . Part Schematics Acquired . | . . . . . . . . . . . . . . Parts Damaged . | . . . . . . . . . . . . . . Bothacking | -11 -10 -10 -10 -9 -8 -7 -7 -6 -6 -6 -5 -5 -5 ------------ Run | Yrd Mat Min Exi Min Mat Fac DSF Fac Ext Cet Fac Upp Upp Used RIF Installer . | . . . . . . . . . . . . . . Robots Hacked . | . . . . . . . . . . . . . . Non-combat . | . . . . . . . . . . . . . . Combat . | . . . . . . . . . . . . . . Robot Hacks Applied . | . . . . . . . . . . . . . . Relay Couplers Released 2 | . . . . . 2 . . . . . . . . Machine Destruction 2 | . . . . . 2 . . . . . . . . Fabnet Peak Effective % . | . . . . . . . . . . . . . . Robots Rewired 19 | . . . . . . . . . 18 . . . 1 Allies Hacked . | . . . . . . . . . . . . . . Hacks Repelled . | . . . . . . . . . . . . . . Allies | -11 -10 -10 -10 -9 -8 -7 -7 -6 -6 -6 -5 -5 -5 -------- Run | Yrd Mat Min Exi Min Mat Fac DSF Fac Ext Cet Fac Upp Upp Total Allies 28 | . . . . . . . . . 22 5 . . 1 Largest Group 9 | . . . . . . . . . 9 5 2 . 1 Highest-Rated Group 533 | . . . . . . . . . 370 533 192 . 29 Highest-Rated Ally 159 | . . . . . . . . . 159 159 96 . 29 Total Orders . | . . . . . . . . . . . . . . Ally Attacks 364 | . . . . . . . . . 265 76 16 . 7 Total Damage 8630 | . . . . . . . . . 5403 2607 485 . 135 Kills 56 | . . . . . . . . . 39 12 4 . 1 Allies Corrupted 1 | . . . . . . . . . . . 1 . . Allies Melted 1 | . . . . . . . . . 1 . . . . Intel | -11 -10 -10 -10 -9 -8 -7 -7 -6 -6 -6 -5 -5 -5 ------- Run | Yrd Mat Min Exi Min Mat Fac DSF Fac Ext Cet Fac Upp Upp Active Infowar (turns) 1997 | . . . . . . . . 41 1919 37 . . . Optics 1051 | . . . . . . . . 41 1010 . . . . Structural 1443 | . . . . . . . . . 1406 37 . . . Robot Analysis Total . | . . . . . . . . . . . . . . Derelict Logs Recovered 4 | . . 2 . 1 . . . . . . . 1 . Drone Launches . | . . . . . . . . . . . . . . Drone Recoveries . | . . . . . . . . . . . . . . Exploration | -11 -10 -10 -10 -9 -8 -7 -7 -6 -6 -6 -5 -5 -5 ------------- Run | Yrd Mat Min Exi Min Mat Fac DSF Fac Ext Cet Fac Upp Upp Turns Passed 7488 | 9 52 120 167 158 155 4 38 111 1919 574 1854 1739 588 Spaces Moved 5072 | 18 104 236 333 211 301 7 74 207 1126 349 917 957 232 Core 1406 | 18 104 236 333 211 71 7 74 207 126 . . . 19 Treads 2104 | . . . . . . . . . 6 11 917 957 213 Legs 1332 | . . . . . . . . . 994 338 . . . Wheels . | . . . . . . . . . . . . . . Hover . | . . . . . . . . . . . . . . Flight 230 | . . . . . 230 . . . . . . . . Fastest Speed 35 | 50 50 50 50 50 35 50 50 50 50 120 160 160 50 Average Speed 113 | 50 50 50 50 50 38 50 50 50 112 121 160 160 154 Slowest Speed 250 | 50 50 50 50 50 50 50 50 50 250 160 160 160 240 Overloaded Moves . | . . . . . . . . . . . . . . Propulsion Burnouts . | . . . . . . . . . . . . . . Robots Hopped . | . . . . . . . . . . . . . . Potential Cave-ins . | . . . . . . . . . . . . . . Cave-ins Triggered . | . . . . . . . . . . . . . . Exploration Rate (%) 47 | 3 49 65 74 50 39 1 79 9 86 71 19 95 28 Regions Visited 13 Branch Regions 7 Pre-discovered Areas 3 | . . 2 1 . . . . . . . . . . Known Exits Taken 6 | . . . . . 1 1 . . 1 1 1 1 . Unknown Exits Taken 6 | 1 1 1 1 1 . . . 1 . . . . . Scrap Searched 8 | . . 1 . 2 . . . . . . . 3 2 Spaces Dug 32 | . . . . . 3 . . . 2 . 13 14 . Terrain Destroyed 169 | . . . . . 16 . . . 20 1 92 18 22 Melee 29 | . . . . . 3 . . . 2 . 13 11 . Projectile 60 | . . . . . . . . . 16 1 29 7 7 AOE 78 | . . . . . 13 . . . . . 50 . 15 Terrain Rammed . | . . . . . . . . . . . . . . Walls Destroyed . | . . . . . . . . . . . . . . Machines Disabled . | . . . . . . . . . . . . . . Actions | -11 -10 -10 -10 -9 -8 -7 -7 -6 -6 -6 -5 -5 -5 --------- Run | Yrd Mat Min Exi Min Mat Fac DSF Fac Ext Cet Fac Upp Upp Total 6222 | 17 103 237 332 262 330 6 74 212 1609 440 1145 1089 366 Wait 393 | . . . . 41 12 . . . 137 9 86 68 40 Move 5059 | 17 103 235 332 210 300 6 73 206 1125 348 916 956 232 Hop . | . . . . . . . . . . . . . . Pick Up 68 | . . 2 . 3 . . . . 17 6 28 11 1 Fast Attach 30 | . . . . . 2 . . 4 19 4 . . 1 Attach 34 | . . . . 3 1 . . . 5 3 4 5 13 Detach 4 | . . . . 3 . . . . 1 . . . . Swap 48 | . . . . . . . . . 20 16 9 2 1 Drop 58 | . . . . . 3 . . 2 17 15 18 3 . Fire 229 | . . . . . . . . . 71 26 70 24 38 Melee 108 | . . . . 2 9 . . . 41 13 13 18 12 Ram 21 | . . . . . . . 1 . . . . . 20 Kick 1 | . . . . . . . . . 1 . . . . Crush 2 | . . . . . . . . . 2 . . . . Escape Stasis 1 | . . . . . . . . . 1 . . . . Rewire 163 | . . . . . . . . . 152 . 1 2 8 Trap 3 | . . . . . 3 . . . . . . . . Miscellaneous . | . . . . . . . . . . . . . . Route ------- -11/Scrapyard -10/Materials -10/Mines -10/Exiles -9/Mines -8/Materials (discovered 3 exits: *Fac x3) -7/Factory -7/DSF -6/Factory -6/Extension (discovered 3 exits: *Fac x2 / *Cet) -6/Cetus (discovered 2 exits: *Fac / *Arc) -5/Factory (discovered 2 exits: *Upp x2) -5/Upper Caves -5/Upper Caves (discovered 1 exit: *Fac) History --------- Turn | Location | Event 4 | -11/Scrapyard | Discovered new exit (range 13) 10 | -11/Scrapyard | Entered Materials 54 | -10/Materials | Core integrity fell below 50% 58 | -10/Materials | Discovered new exit (range 10) 62 | -10/Materials | Entered Mines 89 | -10/Mines | Learned 2 Materials zone layouts 126 | -10/Mines | Learned location of Storage (-7) 156 | -10/Mines | Learned location of Mines (-9) 163 | -10/Mines | A weapon hastily lodged in a ceiling crevice suddenly fell to the ground 180 | -10/Mines | Deemed a non-threat by the Exiles lab entrance 180 | -10/Mines | Discovered new exit (range 5) 182 | -10/Mines | Entered Exiles 196 | -10/Exiles | Met 8R-AWN 204 | -10/Exiles | Met EX-HEX 218 | -10/Exiles | Met EX-BIN 224 | -10/Exiles | Aligned with FarCom system 225 | -10/Exiles | Given EX-Vault access code 236 | -10/Exiles | Opened EX-Vault 250 | -10/Exiles | Warned to stay clear of 0b10 Research branches 277 | -10/Exiles | Met EX-DEC 295 | -10/Exiles | Visited The Gauntlet 305 | -10/Exiles | Build established: Mutant 328 | -10/Exiles | Learned location of Zion (-6) 344 | -10/Exiles | Discovered new exit (range 10) 349 | -10/Exiles | Entered Mines 350 | -9/Mines | Met a Derelict bent on vengeance 432 | -9/Mines | Learned 4 Materials zone layouts 445 | -9/Mines | Found a hidden stash of uninstalled traps 481 | -9/Mines | Discovered new exit (range 5) 507 | -9/Mines | Entered Materials 507 | -8/Materials | Evolved 4 slots: Propulsion x2, Utility x2 508 | -8/Materials | Identified exit to Factory 651 | -8/Materials | Core integrity fell below 50% 662 | -8/Materials | Entered Factory 662 | -7/Factory | Evolved 2 slots: Power x1, Propulsion x1 665 | -7/Factory | Identified exit to DSF 666 | -7/Factory | Entered DSF 685 | -7/DSF | Additional patrols routed to DSF 690 | -7/DSF | Core integrity fell below 50% 696 | -7/DSF | Discovered new exit (range 15) 704 | -7/DSF | Entered Factory 704 | -6/Factory | Evolved 2 slots: Utility x2 805 | -6/Factory | Discovered new exit (range 20) 815 | -6/Factory | Entered Extension 964 | -6/Extension | Lost 3 parts (1p1n1w) 1152 | -6/Extension | Rescued a captive Derelict 1430 | -6/Extension | Spotted B-75 Beast 1435 | -6/Extension | Spotted B-75 Beast 1473 | -6/Extension | Destroyed B-75 Beast 1492 | -6/Extension | Destroyed B-75 Beast 1508 | -6/Extension | Lost 8 allies 1518 | -6/Extension | Discovered new exit (range 3) 1677 | -6/Extension | Rescued A7 1758 | -6/Extension | Build established: Scavenger-Assassin 1835 | -6/Extension | Identified exit to Factory 1915 | -6/Extension | Disrupted transfer network 2014 | -6/Extension | Discovered new exit (range 16) 2016 | -6/Extension | Discovered exit to Factory (range 14) 2038 | -6/Extension | Disrupted transfer network 2095 | -6/Extension | Lost 3 parts (1p1n1w) 2108 | -6/Extension | Identified exit to Cetus 2138 | -6/Extension | Build established: Scavenger-Mutant 2156 | -6/Extension | Rescued a captive Derelict 2157 | -6/Extension | Rescued a captive Derelict 2322 | -6/Extension | System corruption reached 10% 2358 | -6/Extension | Core integrity fell below 50% 2565 | -6/Extension | First assault squad dispatched 2697 | -6/Extension | Lost 6 allies 2734 | -6/Extension | Entered Cetus 2734 | -6/Cetus | Accompanied by 2 allies (A7) 2739 | -6/Cetus | Acquired a Cetus Manufacturing Module code from A7 2750 | -6/Cetus | Spotted Cetus Guard 2750 | -6/Cetus | Spotted Cetus Guard 2758 | -6/Cetus | Spotted Cetus Guard 2759 | -6/Cetus | Spotted Cetus Guard 2764 | -6/Cetus | Allies destroyed Cetus Guard 2779 | -6/Cetus | Allies destroyed Cetus Guard 2785 | -6/Cetus | Allies destroyed Cetus Guard 2795 | -6/Cetus | Destroyed Cetus Guard 2802 | -6/Cetus | Lost 3 parts (1p1n1w) 2914 | -6/Cetus | Started Cetus Manufacturing Module 2939 | -6/Cetus | Manufactured an Enhanced Grunt 2964 | -6/Cetus | Manufactured an Enhanced Grunt 2983 | -6/Cetus | Discovered new exit (range 15) 2989 | -6/Cetus | Manufactured an Enhanced Grunt 3000 | -6/Cetus | Identified exit to Archives 3014 | -6/Cetus | Manufactured an Enhanced Grunt 3025 | -6/Cetus | Spotted Cetus Guard 3025 | -6/Cetus | Spotted Cetus Guard 3027 | -6/Cetus | Extracted ID and sensor layout for unrecognized location from A7's data core 3030 | -6/Cetus | Spotted Cetus Guard 3031 | -6/Cetus | Spotted Cetus Guard 3039 | -6/Cetus | Manufactured an Enhanced Grunt 3040 | -6/Cetus | Found Prototype Protection 3042 | -6/Cetus | Allies destroyed Cetus Guard 3070 | -6/Cetus | System corruption reached 30% 3153 | -6/Cetus | Discovered exit to Factory (range 16) 3168 | -6/Cetus | Met Revision 17 3305 | -6/Cetus | Identified Med. Regenerative Plating 3308 | -6/Cetus | Entered Factory 3308 | -5/Factory | Accompanied by 2 allies 3308 | -5/Factory | Evolved 2 slots: Propulsion x1, Weapon x1 4344 | -5/Factory | Garrison activated, responded to threat 4477 | -5/Factory | Garrison activated, responded to threat 5046 | -5/Factory | Identified exit to Upper Caves 5162 | -5/Factory | Entered Upper Caves 5244 | -5/Upper Caves | Found Alien Artifact 5321 | -5/Upper Caves | Spotted B-75 Beast 5375 | -5/Upper Caves | Destroyed B-75 Beast 6715 | -5/Upper Caves | Discovered new exit (range 9) 6730 | -5/Upper Caves | Identified exit to Upper Caves 6738 | -5/Upper Caves | Learned Factory terminal intel 6901 | -5/Upper Caves | Entered another Upper Caves area 6905 | -5/Upper Caves | Discovered new exit (range 9) 6916 | -5/Upper Caves | Identified exit to Factory 7347 | -5/Upper Caves | Attracted the attention of an 0b10 outpost 7396 | -5/Upper Caves | Lost 3 parts (1p2n) 7398 | -5/Upper Caves | Destroyed 8 combat bots 7429 | -5/Upper Caves | System corruption reached 10% 7442 | -5/Upper Caves | Core integrity fell below 50% 7457 | -5/Upper Caves | Released all parts (6) 7471 | -5/Upper Caves | Core integrity fell below 20% 7488 | -5/Upper Caves | Lost 18 parts (3p7n4u4w) 7489 | -5/Upper Caves | Core destroyed Last Messages --------------- 07472_ Slammed into G-67 Veteran. 07473_ Critical hit (Burn: +50). 07474_ Slammed into G-67 Veteran. 07474_ S-27 Virus overheating. 07474_ S-27 Virus destroyed. 07475_ Slammed into G-67 Veteran. 07478_ System corrupted: Matter fused (-10). 07478_ Slammed into G-67 Veteran. 07479_ Critical hit (Burn: +50). 07480_ Slammed into G-67 Veteran. 07481_ Destabilizing: System corrupted (+1). 07482_ Critical hit (Burn: +37). 07483_ G-67 Veteran heat damages Lgt. Antimatter Reactor. 07485_ Slammed into G-67 Veteran. 07485_ Destroyed Lgt. Antimatter Reactor. 07485_ G-67 Veteran system corrupted by crushing effect. 07485_ Soldier 6a destroyed. 07486_ Slammed into G-67 Veteran. 07489_ G-67 Veteran heat spikes uncontrollably. 07489_ Slammed into G-67 Veteran. Map ----- +----------------------------------------------------+ | ?????????????????????????????????????????????????? | | ?????????????????????????????????????????????????? | | ?????????????????????????????????????????????????? | | ?????????????????????????????????????????????????? | | ?????????????????????????????#?????####??????????? | | ????????????????????????????## ???## ##?????????? | | ???????????????????????????## #### #?????????? | | ?????????????????? ##### #?????????? | | ?????????????????? #?????????? | | ?????????????????? ## ##?????????? | | ?????????????????? #####??????????? | | ?????????????????? ##??????????? | | ?????????????????? #??????????? | | ??????????????????? #### #??????????? | | ??????????????????? ## # ###??## #??????????? | | ??????????????????????# ########## ##?????????? | | ??????????????######?# #?????????? | | ?????????????## ## ### ### ##?????????? | | ?????????????# # # [! "# % ####??????????? | | ??????????????# # #!!!! "#% % #?????????????? | | ??????????????# [!!# "#%# #?????????????? | | ?????????????## ]"# #%;% #?????????????? | | ????????????## # / ;%; ###???????????? | | ????????# ## # #""![%=;=; ; #???????????? | | ?????????? # ###%=; [; ###???????????? | | ?????????????% ### %%@%g ; #?????????????? | | ?????????????????## %%mg #;=; #?????????????? | | ??????????????????# ######### #?????????????? | | ??????????????????####?????## ##????????????? | | ??????????????????????????## % ###??????????? | | ?????????????????????????## ! #??????????? | | ?????????????????????????# #??????????? | | ?????????????????????????## "#?????????# | | ??????????????????????????# ###????????## | | ??????????????????????????# #??####????# | | ??????????????????????????# #### #??### | | ????????????????????? #?## # | | ????????????????????? ### "% ##?# # | | ??????????????????????#### ##?## " #### | | ?????????????????????????# ##????## | | ?????????????????????????# #???????## % | | ?????????????????????????###?????????##### | | ?????????????????????????????????????????# | | ?????????????????????????????????????????# ## | | ?????????????????????????????????????????# ### | | ?????????????????????????????????????????# #?? | | ?????????????????????????????????????????## ##?? | | ??????????????????????????????????????????# #??? | | ??????????????????????????????????????????## ??? | | ???????????????????????????????????????????## ??? | +----------------------------------------------------+ Best States ------------- Heat Dissipation 78 Energy Generation 34 Energy Capacity 515 Matter Stores 300 Matter Capacity 300 Sight Range 20 Terrain Scan Density 10 Base Temperature (-) 150 Armor Coverage 450 Evasion (%) 63 Target Analysis 6 Armor Integrity Analysis 30 Recoil Reduction 6 Offensive Hacking 10 Item Schematics ----------------- None Robot Schematics ------------------ None Fabricated ------------ Nothing Repaired ---------- Nothing Studied --------- Rnf. Deuterium Engine | -5/Factory | Hacked Great Maul | -5/Factory | Hacked Alien Tech Used ----------------- None Achievements -------------- Project G-00 Revising The Future Challenges ------------ None Game ------ Seed DimensionalTechDoublenader Manual? 0 Play Time 01:44:42 Cumulative 53.3 hours Start 2026.02.17 @ 23:38:14 End 2026.02.20 @ 20:59:46 Sessions 3 Manual Loads 0 Difficulty Rogue Special Mode None Game No. 163 Rogue 163 Adventurer 0 Explorer 0 Win Type - Total 0 Types 0/0/0/0/0/0/0/0/0/0 Lore% 60 Gallery% 35 Achievement% 33 Wizard Run 0 Options --------- Layout 0 ASCII 0 Keyboard 0 Movement Arrows Keybinds 0 Fullscreen 1 Font 24/Terminus Map View 64x52 Zoom Use 0% Tactical HUD 1 Map Filters NONE Filters NONE Steam 1 RUN: 4ec0ba09-5335-4ba3-8c7b-558ed4703476